[Event "Live Chess"]
[Site "Chess.com"]
[Date "2023.05.20"]
[Round "-"]
[White "LGC4YOU"]
[Black "Ninifu"]
[Result "0-1"]
[WhiteElo "1178"]
[BlackElo "1988"]
[TimeControl "300"]
[EndTime "11:18:11 PDT"]
[Termination "Ninifu won by checkmate"]

1. d4 {[%clk 0:04:59.1]} 1... Nf6 {[%clk 0:04:57.7]} 2. Nf3 {[%clk 0:04:58.5]}
2... g6 {[%clk 0:04:57]} 3. Bf4 {[%clk 0:04:55.3]} 3... Bg7 {[%clk 0:04:55.6]}
4. e3 {[%clk 0:04:54.5]} 4... O-O {[%clk 0:04:54.8]} 5. c4 {[%clk 0:04:53.6]}
5... d6 {[%clk 0:04:52.8]} 6. Nc3 {[%clk 0:04:53]} 6... c5 {[%clk 0:04:50.1]} 7.
Bd3 {[%clk 0:04:49.8]} 7... cxd4 {[%clk 0:04:46.6]} 8. Nxd4 {[%clk 0:04:48.8]}
8... Nc6 {[%clk 0:04:45.3]} 9. Nxc6 {[%clk 0:04:47.4]} 9... bxc6 {[%clk
0:04:36.7]} 10. O-O {[%clk 0:04:46.2]} 10... c5 {[%clk 0:04:33.8]} 11. h4 {[%clk
0:04:36.3]} 11... h5 {[%clk 0:04:27.5]} 12. Bg5 {[%clk 0:04:32.7]} 12... Bb7
{[%clk 0:04:26]} 13. Rc1 {[%clk 0:04:22.5]} 13... Rb8 {[%clk 0:04:24.8]} 14. b3
{[%clk 0:04:21.3]} 14... Qd7 {[%clk 0:04:18]} 15. Qc2 {[%clk 0:04:19.8]} 15...
Kh7 {[%clk 0:04:15.3]} 16. Ne4 {[%clk 0:04:17.9]} 16... Qg4 {[%clk 0:03:36.5]}
17. Nxf6+ {[%clk 0:04:06.4]} 17... exf6 {[%clk 0:03:34.8]} 18. f3 {[%clk
0:04:05.4]} 18... Qg3 {[%clk 0:03:28.9]} 19. Bf4 {[%clk 0:03:38]} 19... Qxh4
{[%clk 0:03:27]} 20. Qf2 {[%clk 0:03:37]} 20... Qxf2+ {[%clk 0:03:25.3]} 21.
Rxf2 {[%clk 0:03:34.1]} 21... Rbd8 {[%clk 0:03:21.9]} 22. g4 {[%clk 0:03:30.3]}
22... hxg4 {[%clk 0:03:00.8]} 23. fxg4 {[%clk 0:03:28.5]} 23... Kg8 {[%clk
0:03:00]} 24. Rh2 {[%clk 0:03:26.7]} 24... Rfe8 {[%clk 0:02:37.5]} 25. e4 {[%clk
0:03:24.9]} 25... Bxe4 {[%clk 0:02:33.1]} 26. Bxe4 {[%clk 0:03:13.2]} 26... Rxe4
{[%clk 0:02:31.6]} 27. Rf2 {[%clk 0:02:55.1]} 27... f5 {[%clk 0:02:27.2]} 28.
gxf5 {[%clk 0:02:40.9]} 28... Bd4 {[%clk 0:02:26.1]} 29. fxg6 {[%clk 0:02:24.6]}
29... Bxf2+ {[%clk 0:02:21.8]} 30. Kxf2 {[%clk 0:02:23.7]} 30... Rxf4+ {[%clk
0:02:21.2]} 31. Ke3 {[%clk 0:02:20.7]} 31... Rf6 {[%clk 0:02:17.9]} 32. gxf7+
{[%clk 0:02:18.2]} 32... Kxf7 {[%clk 0:02:17.3]} 33. Ke4 {[%clk 0:02:09.5]}
33... Ke6 {[%clk 0:02:10.3]} 34. Re1 {[%clk 0:02:06.3]} 34... Rh8 {[%clk
0:02:05.9]} 35. Kd3+ {[%clk 0:02:03.9]} 35... Kd7 {[%clk 0:02:04.3]} 36. Kc2
{[%clk 0:02:00.2]} 36... Rh3 {[%clk 0:02:02.9]} 37. Kb2 {[%clk 0:01:58.5]} 37...
Rf2+ {[%clk 0:02:00.8]} 38. Kb1 {[%clk 0:01:56.7]} 38... Rhh2 {[%clk 0:01:58.5]}
39. a3 {[%clk 0:01:51.1]} 39... Ra2 {[%clk 0:01:53.6]} 40. Rg1 {[%clk
0:01:42.2]} 40... Rhb2+ {[%clk 0:01:51.1]} 41. Kc1 {[%clk 0:01:40.9]} 41... Ra1+
{[%clk 0:01:50.6]} 42. Kxb2 {[%clk 0:01:39.9]} 42... Rxg1 {[%clk 0:01:49.8]} 43.
a4 {[%clk 0:01:38.3]} 43... Kc6 {[%clk 0:01:47.1]} 44. Kc3 {[%clk 0:01:35.7]}
44... a5 {[%clk 0:01:45.5]} 45. Kd2 {[%clk 0:01:32.8]} 45... Rg3 {[%clk
0:01:44.3]} 46. Kc2 {[%clk 0:01:30.9]} 46... d5 {[%clk 0:01:43.7]} 47. Kb2
{[%clk 0:01:23.5]} 47... d4 {[%clk 0:01:39]} 48. Kc2 {[%clk 0:01:22]} 48... Rc3+
{[%clk 0:01:35.9]} 49. Kb2 {[%clk 0:01:16.9]} 49... Kd6 {[%clk 0:01:33]} 50. Ka3
{[%clk 0:01:14.3]} 50... d3 {[%clk 0:01:31]} 51. Kb2 {[%clk 0:01:13.6]} 51...
Rc2+ {[%clk 0:01:28.4]} 52. Kb1 {[%clk 0:01:09.1]} 52... Ke5 {[%clk 0:01:27.3]}
53. b4 {[%clk 0:01:04.4]} 53... cxb4 {[%clk 0:01:24.1]} 54. c5 {[%clk
0:00:59.8]} 54... b3 {[%clk 0:01:22.2]} 55. c6 {[%clk 0:00:57.6]} 55... d2
{[%clk 0:01:21.4]} 56. c7 {[%clk 0:00:55.2]} 56... d1=Q# {[%clk 0:01:19.5]} 0-1

[Event "Live Chess"]
[Site "Chess.com"]
[Date "2023.05.20"]
[Round "-"]
[White "lucaskk818"]
[Black "Bunny55"]
[Result "1-0"]
[WhiteElo "1892"]
[BlackElo "962"]
[TimeControl "300"]
[EndTime "11:18:16 PDT"]
[Termination "lucaskk818 won by resignation"]

1. d4 {[%clk 0:04:58.5]} 1... Nf6 {[%clk 0:04:56]} 2. c4 {[%clk 0:04:57.6]} 2...
g6 {[%clk 0:04:55.9]} 3. Nc3 {[%clk 0:04:55.8]} 3... Bg7 {[%clk 0:04:55.8]} 4.
e4 {[%clk 0:04:54.8]} 4... d6 {[%clk 0:04:55.7]} 5. h3 {[%clk 0:04:54]} 5... O-O
{[%clk 0:04:55]} 6. Be3 {[%clk 0:04:53]} 6... Nc6 {[%clk 0:04:54.5]} 7. Qd2
{[%clk 0:04:49.5]} 7... Bd7 {[%clk 0:04:51.8]} 8. Nf3 {[%clk 0:04:47.2]} 8...
Rc8 {[%clk 0:04:49.4]} 9. Be2 {[%clk 0:04:44.4]} 9... a6 {[%clk 0:04:49.3]} 10.
O-O {[%clk 0:04:42.9]} 10... b5 {[%clk 0:04:49.2]} 11. cxb5 {[%clk 0:04:41.6]}
11... axb5 {[%clk 0:04:47.6]} 12. Bxb5 {[%clk 0:04:41.5]} 12... Nxd4 {[%clk
0:04:45.6]} 13. Nxd4 {[%clk 0:04:33.8]} 1-0

[Event "Live Chess"]
[Site "Chess.com"]
[Date "2023.05.20"]
[Round "-"]
[White "Reggie016"]
[Black "Enhard"]
[Result "1-0"]
[WhiteElo "1117"]
[BlackElo "1439"]
[TimeControl "300"]
[EndTime "11:18:23 PDT"]
[Termination "Reggie016 won by checkmate"]

1. e4 {[%clk 0:04:57.9]} 1... e6 {[%clk 0:04:58.2]} 2. d4 {[%clk 0:04:55.4]}
2... d5 {[%clk 0:04:57.6]} 3. e5 {[%clk 0:04:54.7]} 3... c5 {[%clk 0:04:56.3]}
4. c3 {[%clk 0:04:54.3]} 4... cxd4 {[%clk 0:04:54.9]} 5. cxd4 {[%clk 0:04:52.8]}
5... Nc6 {[%clk 0:04:49.2]} 6. Nf3 {[%clk 0:04:51.3]} 6... Qa5+ {[%clk
0:04:47.3]} 7. Nc3 {[%clk 0:04:45.3]} 7... Bb4 {[%clk 0:04:46]} 8. Bd2 {[%clk
0:04:31.1]} 8... Bd7 {[%clk 0:04:41.1]} 9. Bd3 {[%clk 0:04:13.4]} 9... Nge7
{[%clk 0:04:38.2]} 10. O-O {[%clk 0:04:11.7]} 10... O-O {[%clk 0:04:35.7]} 11.
Bxh7+ {[%clk 0:03:56.9]} 11... Kh8 {[%clk 0:04:31.2]} 12. Ng5 {[%clk 0:03:45.9]}
12... Ng6 {[%clk 0:04:27.1]} 13. Qh5 {[%clk 0:03:37.6]} 13... Nf4 {[%clk
0:03:39]} 14. Bxf4 {[%clk 0:03:32.8]} 14... g6 {[%clk 0:03:37.8]} 15. Bxg6+
{[%clk 0:03:27.8]} 15... Kg7 {[%clk 0:03:33.5]} 16. Qh7# {[%clk 0:03:24.6]} 1-0

[Event "Live Chess"]
[Site "Chess.com"]
[Date "2023.05.20"]
[Round "-"]
[White "GEMdzq"]
[Black "mattihelenius2"]
[Result "1-0"]
[WhiteElo "2201"]
[BlackElo "479"]
[TimeControl "300"]
[EndTime "11:18:29 PDT"]
[Termination "GEMdzq won by resignation"]

1. e4 {[%clk 0:04:57.9]} 1... e5 {[%clk 0:04:57.9]} 2. d4 {[%clk 0:04:54.5]}
2... Nc6 {[%clk 0:04:51.8]} 3. Bc4 {[%clk 0:04:44.8]} 3... Qf6 {[%clk
0:04:47.1]} 4. Nf3 {[%clk 0:04:39.2]} 4... Nxd4 {[%clk 0:04:44.5]} 5. Nxd4
{[%clk 0:04:35.2]} 5... exd4 {[%clk 0:04:40.3]} 6. O-O {[%clk 0:04:33.1]} 6...
Bc5 {[%clk 0:04:33.3]} 7. e5 {[%clk 0:04:31.6]} 7... Qxe5 {[%clk 0:04:28.4]} 8.
Re1 {[%clk 0:04:30.2]} 8... Bd6 {[%clk 0:04:05.8]} 9. Bf4 {[%clk 0:04:25.8]}
9... Ne7 {[%clk 0:03:54.2]} 10. Bxe5 {[%clk 0:04:23.8]} 10... Bxe5 {[%clk
0:03:53.6]} 11. Rxe5 {[%clk 0:04:23.5]} 11... f6 {[%clk 0:03:51.3]} 12. Re1
{[%clk 0:04:19]} 1-0

[Event "Live Chess"]
[Site "Chess.com"]
[Date "2023.05.20"]
[Round "-"]
[White "Rusty_Bridges"]
[Black "MrDodgy"]
[Result "0-1"]
[WhiteElo "1364"]
[BlackElo "2316"]
[TimeControl "300"]
[EndTime "11:18:33 PDT"]
[Termination "MrDodgy won by resignation"]

1. e4 {[%clk 0:04:55.5]} 1... e6 {[%clk 0:04:58.7]} 2. d3 {[%clk 0:04:48.7]}
2... d5 {[%clk 0:04:58.1]} 3. exd5 {[%clk 0:04:40.1]} 3... exd5 {[%clk
0:04:56.6]} 4. Nf3 {[%clk 0:04:37.4]} 4... Nf6 {[%clk 0:04:55.6]} 5. Be2 {[%clk
0:04:36.3]} 5... Bd6 {[%clk 0:04:53.6]} 6. O-O {[%clk 0:04:35.5]} 6... O-O
{[%clk 0:04:53]} 7. Re1 {[%clk 0:04:33.8]} 7... c5 {[%clk 0:04:51.6]} 8. Bg5
{[%clk 0:04:30.6]} 8... h6 {[%clk 0:04:48.6]} 9. Bh4 {[%clk 0:04:29.1]} 9... Nc6
{[%clk 0:04:47.6]} 10. Nc3 {[%clk 0:04:26]} 10... Be6 {[%clk 0:04:41.9]} 11. a3
{[%clk 0:04:22.2]} 11... Re8 {[%clk 0:04:36.9]} 12. Bf1 {[%clk 0:04:18.4]} 12...
Be7 {[%clk 0:04:31.2]} 13. d4 {[%clk 0:03:58.2]} 13... c4 {[%clk 0:04:07.5]} 14.
Qd2 {[%clk 0:03:33.3]} 14... a6 {[%clk 0:03:36.2]} 15. Rad1 {[%clk 0:03:22.5]}
15... b5 {[%clk 0:03:33.6]} 16. Ne5 {[%clk 0:03:14.4]} 16... Rc8 {[%clk
0:03:20.8]} 17. Nxc6 {[%clk 0:02:57.4]} 17... Rxc6 {[%clk 0:03:16.3]} 18. Be2
{[%clk 0:02:53.5]} 18... Qb8 {[%clk 0:03:05.5]} 19. Bf3 {[%clk 0:02:45.2]} 19...
Rd6 {[%clk 0:02:59.3]} 20. Bg3 {[%clk 0:02:42.8]} 20... Qb6 {[%clk 0:02:57.5]}
21. Bxd6 {[%clk 0:02:40.6]} 21... Qxd6 {[%clk 0:02:50.6]} 22. Qe2 {[%clk
0:02:25.9]} 22... Bd8 {[%clk 0:02:17.8]} 23. Qe5 {[%clk 0:02:03.4]} 23... Qc6
{[%clk 0:02:06.3]} 24. Qg3 {[%clk 0:01:41.6]} 24... Bc7 {[%clk 0:02:00.4]} 25.
Re5 {[%clk 0:01:12.1]} 25... Rb8 {[%clk 0:01:23.6]} 26. h3 {[%clk 0:01:07.2]}
26... a5 {[%clk 0:01:16.6]} 27. Rde1 {[%clk 0:01:05.5]} 27... b4 {[%clk
0:01:14.3]} 28. axb4 {[%clk 0:01:03.2]} 28... axb4 {[%clk 0:01:13.3]} 29. Nd1
{[%clk 0:01:01.3]} 29... Nd7 {[%clk 0:01:08.5]} 30. Bg4 {[%clk 0:00:57.1]} 30...
Nxe5 {[%clk 0:01:04.5]} 31. dxe5 {[%clk 0:00:55.5]} 31... d4 {[%clk 0:00:56.7]}
32. Bxe6 {[%clk 0:00:51.3]} 32... Qxe6 {[%clk 0:00:56.6]} 33. f4 {[%clk
0:00:46.3]} 33... Rd8 {[%clk 0:00:53.4]} 34. Qf3 {[%clk 0:00:41.7]} 34... Bb6
{[%clk 0:00:46.6]} 35. Kh1 {[%clk 0:00:39.7]} 35... Qd5 {[%clk 0:00:44.6]} 36.
Qxd5 {[%clk 0:00:38.1]} 36... Rxd5 {[%clk 0:00:44.5]} 37. Nf2 {[%clk 0:00:36.4]}
37... d3 {[%clk 0:00:43.1]} 38. cxd3 {[%clk 0:00:34.7]} 38... Bxf2 {[%clk
0:00:42]} 39. Rd1 {[%clk 0:00:32.9]} 39... Rxd3 {[%clk 0:00:40.3]} 40. g4 {[%clk
0:00:30.4]} 40... Rxd1+ {[%clk 0:00:38.6]} 0-1

[Event "Live Chess"]
[Site "Chess.com"]
[Date "2023.05.20"]
[Round "-"]
[White "hturner40"]
[Black "18Ziyad"]
[Result "1-0"]
[WhiteElo "1832"]
[BlackElo "935"]
[TimeControl "300"]
[EndTime "11:18:41 PDT"]
[Termination "hturner40 won by checkmate"]

1. e4 {[%clk 0:04:53.8]} 1... e6 {[%clk 0:04:56.5]} 2. d4 {[%clk 0:04:50.6]}
2... b6 {[%clk 0:04:53.9]} 3. f3 {[%clk 0:04:47.1]} 3... Bb7 {[%clk 0:04:53.8]}
4. a3 {[%clk 0:04:43]} 4... d5 {[%clk 0:04:53.3]} 5. Bd3 {[%clk 0:04:38.9]} 5...
Be7 {[%clk 0:04:45.6]} 6. Ne2 {[%clk 0:04:36]} 6... Nf6 {[%clk 0:04:41.1]} 7.
Nbc3 {[%clk 0:04:32.9]} 7... Nbd7 {[%clk 0:04:35.4]} 8. O-O {[%clk 0:04:22]}
8... c5 {[%clk 0:04:33.4]} 9. e5 {[%clk 0:04:21.2]} 9... Ng8 {[%clk 0:04:30.6]}
10. f4 {[%clk 0:04:08.9]} 10... f6 {[%clk 0:04:28.6]} 11. Ng3 {[%clk 0:03:55.3]}
11... c4 {[%clk 0:04:26.7]} 12. Qh5+ {[%clk 0:03:50.4]} 12... g6 {[%clk
0:04:23.4]} 13. Bxg6+ {[%clk 0:03:46.1]} 13... hxg6 {[%clk 0:04:17.3]} 14. Qxh8
{[%clk 0:03:44]} 14... Kf8 {[%clk 0:04:17.2]} 15. f5 {[%clk 0:03:39.7]} 15...
gxf5 {[%clk 0:04:13.6]} 16. Bh6+ {[%clk 0:03:36.6]} 16... Kf7 {[%clk 0:04:12]}
17. Qg7+ {[%clk 0:03:32.5]} 17... Ke8 {[%clk 0:04:10.6]} 18. Qxg8+ {[%clk
0:03:27.3]} 18... Bf8 {[%clk 0:04:07.8]} 19. Qxe6+ {[%clk 0:03:15.1]} 19... Be7
{[%clk 0:04:02.7]} 20. Nxf5 {[%clk 0:03:06.4]} 20... Nf8 {[%clk 0:04:00.7]} 21.
Ng7# {[%clk 0:02:58.1]} 1-0

[Event "Live Chess"]
[Site "Chess.com"]
[Date "2023.05.20"]
[Round "-"]
[White "mightysmasher"]
[Black "aliciabutteriss"]
[Result "1-0"]
[WhiteElo "2120"]
[BlackElo "542"]
[TimeControl "300"]
[EndTime "11:18:41 PDT"]
[Termination "mightysmasher won by resignation"]

1. e4 {[%clk 0:04:58.1]} 1... c6 {[%clk 0:04:59.1]} 2. d4 {[%clk 0:04:56.6]}
2... d5 {[%clk 0:04:58.2]} 3. Nd2 {[%clk 0:04:56]} 3... Nf6 {[%clk 0:04:53.6]}
4. e5 {[%clk 0:04:53.2]} 4... Ne4 {[%clk 0:04:46]} 5. Bd3 {[%clk 0:04:50.6]}
5... Nxf2 {[%clk 0:04:35.6]} 6. Kxf2 {[%clk 0:04:40.9]} 6... e6 {[%clk 0:04:35]}
7. Ngf3 {[%clk 0:04:35.9]} 7... Qf6 {[%clk 0:04:30.5]} 8. exf6 {[%clk
0:04:32.9]} 8... g6 {[%clk 0:04:25.9]} 9. Ne5 {[%clk 0:04:30.9]} 9... c5 {[%clk
0:04:19.8]} 10. Ndf3 {[%clk 0:04:28.7]} 10... cxd4 {[%clk 0:04:15.5]} 11. Ng5
{[%clk 0:04:27]} 11... Bh6 {[%clk 0:04:10.9]} 12. Nexf7 {[%clk 0:04:24.4]} 12...
Rf8 {[%clk 0:04:06.4]} 13. Nxh6 {[%clk 0:04:22.7]} 13... Rxf6+ {[%clk
0:04:05.6]} 14. Kg3 {[%clk 0:04:20.2]} 14... e5 {[%clk 0:04:00.7]} 15. Rf1
{[%clk 0:04:13.4]} 1-0

[Event "Live Chess"]
[Site "Chess.com"]
[Date "2023.05.20"]
[Round "-"]
[White "onemoretime1975"]
[Black "EdenHazard8"]
[Result "1/2-1/2"]
[WhiteElo "1910"]
[BlackElo "2099"]
[TimeControl "300"]
[EndTime "11:18:43 PDT"]
[Termination "Game drawn by repetition"]

1. e4 {[%clk 0:04:57.8]} 1... e5 {[%clk 0:04:59.6]} 2. Nf3 {[%clk 0:04:56]} 2...
Nc6 {[%clk 0:04:59.3]} 3. Bc4 {[%clk 0:04:54.3]} 3... Bc5 {[%clk 0:04:58.8]} 4.
d3 {[%clk 0:04:52.5]} 4... h6 {[%clk 0:04:57.8]} 5. h3 {[%clk 0:04:50.7]} 5...
d6 {[%clk 0:04:57.3]} 6. Nc3 {[%clk 0:04:48.3]} 6... a6 {[%clk 0:04:53.5]} 7. a3
{[%clk 0:04:46.7]} 7... Nf6 {[%clk 0:04:51.6]} 8. O-O {[%clk 0:04:42.9]} 8...
O-O {[%clk 0:04:51.1]} 9. Be3 {[%clk 0:04:32.2]} 9... Bxe3 {[%clk 0:04:47.8]}
10. fxe3 {[%clk 0:04:30.6]} 10... b5 {[%clk 0:04:47.7]} 11. Ba2 {[%clk
0:04:19.9]} 11... Ne7 {[%clk 0:04:46.4]} 12. Nd5 {[%clk 0:04:17.8]} 12... Nexd5
{[%clk 0:04:43.8]} 13. Bxd5 {[%clk 0:04:11.1]} 13... Nxd5 {[%clk 0:04:41.9]} 14.
exd5 {[%clk 0:04:09.7]} 14... Bb7 {[%clk 0:04:41.5]} 15. e4 {[%clk 0:04:05.3]}
15... f5 {[%clk 0:04:39]} 16. Nh2 {[%clk 0:04:02.2]} 16... Qg5 {[%clk 0:04:36]}
17. Qc1 {[%clk 0:03:41.4]} 17... Qg6 {[%clk 0:04:29]} 18. Qe3 {[%clk 0:03:32.1]}
18... f4 {[%clk 0:04:18.8]} 19. Qf3 {[%clk 0:03:25.8]} 19... Bc8 {[%clk
0:04:18.2]} 20. Kh1 {[%clk 0:03:17.4]} 20... Bd7 {[%clk 0:04:12.8]} 21. Rg1
{[%clk 0:03:12.4]} 21... Qe8 {[%clk 0:04:10.3]} 22. g4 {[%clk 0:03:04.4]} 22...
g5 {[%clk 0:04:01.1]} 23. Kg2 {[%clk 0:02:57.3]} 23... Kg7 {[%clk 0:03:59.9]}
24. Rh1 {[%clk 0:02:55.1]} 24... Rh8 {[%clk 0:03:58.1]} 25. Qe2 {[%clk
0:02:45.3]} 25... Qb8 {[%clk 0:03:55.5]} 26. Kf3 {[%clk 0:02:40.5]} 26... Qb6
{[%clk 0:03:54.5]} 27. Qf2 {[%clk 0:02:38.2]} 27... Qxf2+ {[%clk 0:03:50.1]} 28.
Kxf2 {[%clk 0:02:36.4]} 28... c6 {[%clk 0:03:49.7]} 29. dxc6 {[%clk 0:02:32.2]}
29... Bxc6 {[%clk 0:03:49.6]} 30. Nf3 {[%clk 0:02:30.9]} 30... Rac8 {[%clk
0:03:47.9]} 31. c3 {[%clk 0:02:25.3]} 31... Kf6 {[%clk 0:03:40]} 32. h4 {[%clk
0:02:23.5]} 32... d5 {[%clk 0:03:38]} 33. Nd2 {[%clk 0:01:56.2]} 33... dxe4
{[%clk 0:03:34.9]} 34. Nxe4+ {[%clk 0:01:52.9]} 34... Bxe4 {[%clk 0:03:33.3]}
35. dxe4 {[%clk 0:01:51.9]} 35... Rcd8 {[%clk 0:03:31.1]} 36. Rad1 {[%clk
0:01:50]} 36... Ke7 {[%clk 0:03:25.8]} 37. h5 {[%clk 0:01:42.9]} 37... Rxd1
{[%clk 0:03:22.9]} 38. Rxd1 {[%clk 0:01:41]} 38... Rd8 {[%clk 0:03:22.5]} 39.
Rxd8 {[%clk 0:01:25.5]} 39... Kxd8 {[%clk 0:03:22.4]} 40. b3 {[%clk 0:01:18.3]}
40... Kc7 {[%clk 0:03:19.9]} 41. Ke2 {[%clk 0:01:17.2]} 41... Kc6 {[%clk
0:03:19]} 42. Kd3 {[%clk 0:01:16.2]} 42... a5 {[%clk 0:03:15.2]} 43. b4 {[%clk
0:01:10.5]} 43... axb4 {[%clk 0:03:13.7]} 44. cxb4 {[%clk 0:01:00.8]} 44... Kb6
{[%clk 0:03:12.8]} 45. Ke2 {[%clk 0:00:59.4]} 45... Kc6 {[%clk 0:03:12.1]} 46.
Kf3 {[%clk 0:00:58.7]} 46... Kb6 {[%clk 0:03:11.8]} 47. Ke2 {[%clk 0:00:58.2]}
47... Kc6 {[%clk 0:03:11.5]} 48. Kf3 {[%clk 0:00:57.7]} 48... Kb6 {[%clk
0:03:11.2]} 49. Ke2 {[%clk 0:00:57]} 1/2-1/2

[Event "Live Chess"]
[Site "Chess.com"]
[Date "2023.05.20"]
[Round "-"]
[White "Brooms1989"]
[Black "JoshMcK"]
[Result "0-1"]
[WhiteElo "1007"]
[BlackElo "1527"]
[TimeControl "300"]
[EndTime "11:18:43 PDT"]
[Termination "JoshMcK won by checkmate"]

1. e4 {[%clk 0:04:56]} 1... c6 {[%clk 0:04:55.5]} 2. d4 {[%clk 0:04:52.3]} 2...
d5 {[%clk 0:04:54.5]} 3. f3 {[%clk 0:04:47.5]} 3... dxe4 {[%clk 0:04:52.2]} 4.
fxe4 {[%clk 0:04:46.6]} 4... e5 {[%clk 0:04:51.3]} 5. Nf3 {[%clk 0:04:44.8]}
5... Bg4 {[%clk 0:04:50.3]} 6. dxe5 {[%clk 0:04:42.9]} 6... Qxd1+ {[%clk
0:04:40.3]} 7. Kxd1 {[%clk 0:04:42.8]} 7... Nd7 {[%clk 0:04:34.7]} 8. Nc3 {[%clk
0:04:39.1]} 8... Nxe5 {[%clk 0:04:32.7]} 9. Be2 {[%clk 0:04:35.7]} 9... O-O-O+
{[%clk 0:04:30.5]} 10. Ke1 {[%clk 0:04:33.6]} 10... Nxf3+ {[%clk 0:04:28.4]} 11.
Bxf3 {[%clk 0:04:32.2]} 11... Bxf3 {[%clk 0:04:27.4]} 12. gxf3 {[%clk
0:04:32.1]} 12... Nf6 {[%clk 0:04:26.6]} 13. Bg5 {[%clk 0:04:28.6]} 13... Be7
{[%clk 0:04:24.4]} 14. Rd1 {[%clk 0:04:27]} 14... h6 {[%clk 0:04:22.7]} 15. Bxf6
{[%clk 0:04:24.3]} 15... Bxf6 {[%clk 0:04:21.9]} 16. Kf2 {[%clk 0:04:23.9]}
16... Bd4+ {[%clk 0:04:15.2]} 17. Kg2 {[%clk 0:04:20.8]} 17... f6 {[%clk
0:04:08.7]} 18. Rd3 {[%clk 0:04:12]} 18... g5 {[%clk 0:04:05.6]} 19. Rhd1 {[%clk
0:04:09.7]} 19... Bxc3 {[%clk 0:03:59.6]} 20. Rxd8+ {[%clk 0:04:06.8]} 20...
Rxd8 {[%clk 0:03:59.3]} 21. Rxd8+ {[%clk 0:04:06.2]} 21... Kxd8 {[%clk
0:03:59.2]} 22. bxc3 {[%clk 0:04:05.6]} 22... Kd7 {[%clk 0:03:58.3]} 23. Kf2
{[%clk 0:04:04.8]} 23... Kd6 {[%clk 0:03:57.6]} 24. Ke3 {[%clk 0:04:04.4]} 24...
Kc5 {[%clk 0:03:56]} 25. Kd3 {[%clk 0:04:01.4]} 25... b5 {[%clk 0:03:55.1]} 26.
a3 {[%clk 0:03:58]} 26... a5 {[%clk 0:03:54]} 27. Kd2 {[%clk 0:03:56.3]} 27...
Kc4 {[%clk 0:03:51.7]} 28. h3 {[%clk 0:03:52]} 28... a4 {[%clk 0:03:44.7]} 29.
f4 {[%clk 0:03:40.8]} 29... gxf4 {[%clk 0:03:38.5]} 30. Ke2 {[%clk 0:03:37.9]}
30... Kxc3 {[%clk 0:03:37]} 31. Kf3 {[%clk 0:03:37.4]} 31... Kxc2 {[%clk
0:03:23.7]} 32. Kxf4 {[%clk 0:03:37.3]} 32... Kd3 {[%clk 0:03:22.9]} 33. Kf5
{[%clk 0:03:34.5]} 33... c5 {[%clk 0:03:21.9]} 34. Kxf6 {[%clk 0:03:32.5]} 34...
c4 {[%clk 0:03:21.8]} 35. e5 {[%clk 0:03:31.4]} 35... c3 {[%clk 0:03:21.7]} 36.
e6 {[%clk 0:03:30.8]} 36... c2 {[%clk 0:03:21.6]} 37. e7 {[%clk 0:03:30.6]}
37... c1=Q {[%clk 0:03:21.5]} 38. e8=Q {[%clk 0:03:30]} 38... Qf4+ {[%clk
0:03:14.6]} 39. Kg6 {[%clk 0:03:24.3]} 39... Qg5+ {[%clk 0:03:13.5]} 40. Kh7
{[%clk 0:03:22.3]} 40... Kc3 {[%clk 0:02:58]} 41. Qc6+ {[%clk 0:03:19.8]} 41...
Kb2 {[%clk 0:02:54.1]} 42. Qg2+ {[%clk 0:03:17.1]} 42... Qxg2 {[%clk 0:02:45.4]}
43. Kxh6 {[%clk 0:03:15.2]} 43... Qxh3+ {[%clk 0:02:44.3]} 44. Kg6 {[%clk
0:03:14.9]} 44... Qxa3 {[%clk 0:02:43.9]} 45. Kf5 {[%clk 0:03:14.1]} 45... Qe3
{[%clk 0:02:43.8]} 46. Kg4 {[%clk 0:03:13]} 46... a3 {[%clk 0:02:43.7]} 47. Kf5
{[%clk 0:03:11.5]} 47... a2 {[%clk 0:02:43.6]} 48. Kg4 {[%clk 0:03:11.4]} 48...
a1=Q {[%clk 0:02:43.5]} 49. Kf5 {[%clk 0:03:11.3]} 49... Qf1+ {[%clk 0:02:42.6]}
50. Kg4 {[%clk 0:03:10.6]} 50... Qef2 {[%clk 0:02:42.5]} 51. Kg5 {[%clk
0:03:09.2]} 51... Q2g2+ {[%clk 0:02:42.4]} 52. Kh4 {[%clk 0:03:08.7]} 52...
Qfh1# {[%clk 0:02:42.3]} 0-1